[Event "Titled Tuesday Blitz April 19 Early 2022"]
[White "Ianov, Viktor"]
[Black "Papp, Petra"]
[WhiteFideId "14102730"]
[BlackFideId "739049"]
[WhiteElo "2161"]
[BlackElo "2259"]
[Result "1-0"]
[Round "11"]
[TimeControl "180+1"]
[Date "2022.04.19"]
[WhiteClock "0:00:32"]
[BlackClock "0:00:11"]

1. Nf3 {[%clk 0:03:00]}  c5 {[%clk 0:02:54]} 2. g3 {[%clk 0:03:00]}  Nc6 {[%clk 0:02:52]} 3. Bg2 {[%clk 0:03:00]}  g6 {[%clk 0:02:53]} 4. c4 {[%clk 0:03:00]}  Bg7 {[%clk 0:02:53]} 5. Nc3 {[%clk 0:03:01]}  d6 {[%clk 0:02:53]} 6. O-O {[%clk 0:03:00]}  e6 {[%clk 0:02:54]} 7. b3 {[%clk 0:02:58]}  Nge7 {[%clk 0:02:54]} 8. Bb2 {[%clk 0:02:58]}  O-O {[%clk 0:02:54]} 9. e3 {[%clk 0:02:58]}  b6 {[%clk 0:02:55]} 10. d4 {[%clk 0:02:58]}  Bb7 {[%clk 0:02:55]} 11. Qd2 {[%clk 0:02:58]}  Nf5 {[%clk 0:02:36]} 12. Ne2 {[%clk 0:02:54]}  Qe7 {[%clk 0:02:30]} 13. Rfd1 {[%clk 0:02:53]}  Rfd8 {[%clk 0:02:30]} 14. Rac1 {[%clk 0:02:53]}  Rac8 {[%clk 0:02:29]} 15. h3 {[%clk 0:02:51]}  Ba8 {[%clk 0:02:13]} 16. Nf4 {[%clk 0:02:50]}  cxd4 {[%clk 0:01:43]} 17. exd4 {[%clk 0:02:46]}  d5 {[%clk 0:01:32]} 18. cxd5 {[%clk 0:02:43]}  exd5 {[%clk 0:01:30]} 19. Re1 {[%clk 0:02:40]}  Qd6 {[%clk 0:01:24]} 20. Ne5 {[%clk 0:02:33]}  Bh6 {[%clk 0:00:58]} 21. h4 {[%clk 0:02:03]}  Nce7 {[%clk 0:00:55]} 22. Ned3 {[%clk 0:01:53]}  Rxc1 {[%clk 0:00:48]} 23. Rxc1 {[%clk 0:01:51]}  Rc8 {[%clk 0:00:48]} 24. Rxc8+ {[%clk 0:01:49]}  Nxc8 {[%clk 0:00:48]} 25. Qc2 {[%clk 0:01:37]}  Nce7 {[%clk 0:00:47]} 26. Ne2 {[%clk 0:01:35]}  Bb7 {[%clk 0:00:45]} 27. Bc1 {[%clk 0:01:26]}  Bxc1 {[%clk 0:00:43]} 28. Qxc1 {[%clk 0:01:24]}  Kg7 {[%clk 0:00:43]} 29. Qc3 {[%clk 0:01:23]}  Qc6 {[%clk 0:00:42]} 30. Qxc6 {[%clk 0:01:20]}  Bxc6 {[%clk 0:00:40]} 31. Nb4 {[%clk 0:01:17]}  Bb7 {[%clk 0:00:38]} 32. Kf1 {[%clk 0:01:14]}  a5 {[%clk 0:00:37]} 33. Nc2 {[%clk 0:01:13]}  Kf6 {[%clk 0:00:32]} 34. Ne3 {[%clk 0:01:12]}  Nxe3+ {[%clk 0:00:31]} 35. fxe3 {[%clk 0:01:11]}  Nf5 {[%clk 0:00:31]} 36. Kf2 {[%clk 0:01:11]}  Ke6 {[%clk 0:00:31]} 37. Nf4+ {[%clk 0:01:11]}  Kd6 {[%clk 0:00:32]} 38. Bh3 {[%clk 0:01:11]}  Ng7 {[%clk 0:00:29]} 39. g4 {[%clk 0:01:09]}  Ne6 {[%clk 0:00:30]} 40. g5 {[%clk 0:01:07]}  Nxf4 {[%clk 0:00:27]} 41. exf4 {[%clk 0:01:06]}  Ba6 {[%clk 0:00:28]} 42. Ke3 {[%clk 0:01:05]}  Ke7 {[%clk 0:00:27]} 43. f5 {[%clk 0:01:05]}  f6 {[%clk 0:00:25]} 44. Kf4 {[%clk 0:01:04]}  fxg5+ {[%clk 0:00:21]} 45. hxg5 {[%clk 0:01:04]}  Kd6 {[%clk 0:00:14]} 46. f6 {[%clk 0:01:02]}  Bd3 {[%clk 0:00:11]} 47. Bg2 {[%clk 0:00:57]}  Ke6 {[%clk 0:00:11]} 48. Bh3+ {[%clk 0:00:55]}  Kd6 {[%clk 0:00:10]} 49. Ke3 {[%clk 0:00:50]}  Be4 {[%clk 0:00:10]} 50. Kf4 {[%clk 0:00:48]}  b5 {[%clk 0:00:10]} 51. a3 {[%clk 0:00:43]}  b4 {[%clk 0:00:10]} 52. axb4 {[%clk 0:00:42]}  axb4 {[%clk 0:00:10]} 53. f7 {[%clk 0:00:34]}  Ke7 {[%clk 0:00:10]} 54. Be6 {[%clk 0:00:33]}  Bg2 {[%clk 0:00:03]} 55. Ke5 {[%clk 0:00:33]}  Bf3 {[%clk 0:00:02]} 56. Bxd5 {[%clk 0:00:33]}  Bxd5 {[%clk 0:00:02]} 57. Kxd5 {[%clk 0:00:33]}  Kxf7 {[%clk 0:00:03]} 58. Ke5 {[%clk 0:00:33]}  Ke7 {[%clk 0:00:03]} 59. d5 {[%clk 0:00:33]}  Kd7 {[%clk 0:00:04]} 60. Kf6 {[%clk 0:00:32]}  Kd6 {[%clk 0:00:04]} 61. Kg7 {[%clk 0:00:32]}  Kxd5 {[%clk 0:00:05]} 62. Kxh7 {[%clk 0:00:32]}  Kd4 {[%clk 0:00:05]} 63. Kxg6 {[%clk 0:00:32]}  Kc3 {[%clk 0:00:06]} 64. Kf6 {[%clk 0:00:32]}  Kxb3 {[%clk 0:00:07]} 65. g6 {[%clk 0:00:33]}  Kc2 {[%clk 0:00:08]} 66. g7 {[%clk 0:00:33]}  b3 {[%clk 0:00:09]} 67. g8=Q {[%clk 0:00:33]}  b2 {[%clk 0:00:10]} 68. Qc4+ {[%clk 0:00:33]}  Kd2 {[%clk 0:00:10]} 69. Qb4+ {[%clk 0:00:32]}  Kc1 {[%clk 0:00:11]} 70. Qc3+ {[%clk 0:00:32]} 1-0


[Site "https://www.chess.com"]

[Event "Titled Tuesday Blitz April 19 Early 2022"]
[White "Iljin, Timofey"]
[Black "Carrasco Miranda, Andres"]
[WhiteFideId "14110180"]
[BlackFideId "3405990"]
[WhiteElo "2396"]
[BlackElo "2177"]
[Result "1-0"]
[Round "11"]
[TimeControl "180+1"]
[Date "2022.04.19"]
[WhiteClock "0:01:52"]
[BlackClock "0:00:20"]

1. d4 {[%clk 0:03:00]}  Nf6 {[%clk 0:02:49]} 2. c4 {[%clk 0:03:01]}  g6 {[%clk 0:02:48]} 3. Nc3 {[%clk 0:03:01]}  d5 {[%clk 0:02:47]} 4. cxd5 {[%clk 0:03:02]}  Nxd5 {[%clk 0:02:48]} 5. e4 {[%clk 0:03:03]}  Nxc3 {[%clk 0:02:48]} 6. bxc3 {[%clk 0:03:04]}  Bg7 {[%clk 0:02:48]} 7. Nf3 {[%clk 0:03:05]}  c5 {[%clk 0:02:48]} 8. Be2 {[%clk 0:03:06]}  O-O {[%clk 0:02:48]} 9. O-O {[%clk 0:03:05]}  Bg4 {[%clk 0:02:45]} 10. Be3 {[%clk 0:03:04]}  Nc6 {[%clk 0:02:44]} 11. d5 {[%clk 0:03:04]}  Bxf3 {[%clk 0:02:44]} 12. Bxf3 {[%clk 0:03:05]}  Ne5 {[%clk 0:02:44]} 13. Be2 {[%clk 0:03:05]}  e6 {[%clk 0:02:39]} 14. f4 {[%clk 0:03:03]}  Nd7 {[%clk 0:02:39]} 15. c4 {[%clk 0:03:01]}  exd5 {[%clk 0:02:36]} 16. cxd5 {[%clk 0:03:01]}  Re8 {[%clk 0:02:36]} 17. e5 {[%clk 0:03:01]}  Rc8 {[%clk 0:02:19]} 18. d6 {[%clk 0:02:59]}  c4 {[%clk 0:02:18]} 19. Bf3 {[%clk 0:02:58]}  b5 {[%clk 0:02:17]} 20. Bb7 {[%clk 0:02:52]}  Rb8 {[%clk 0:02:10]} 21. Bd5 {[%clk 0:02:53]}  Nb6 {[%clk 0:02:09]} 22. Bc6 {[%clk 0:02:52]}  b4 {[%clk 0:02:01]} 23. Bxe8 {[%clk 0:02:51]}  Qxe8 {[%clk 0:02:02]} 24. Qd4 {[%clk 0:02:45]}  Qc6 {[%clk 0:01:55]} 25. Rac1 {[%clk 0:02:43]}  a5 {[%clk 0:01:50]} 26. Rfd1 {[%clk 0:02:42]}  c3 {[%clk 0:01:50]} 27. d7 {[%clk 0:02:41]}  Nxd7 {[%clk 0:01:32]} 28. Qxd7 {[%clk 0:02:42]}  Qxd7 {[%clk 0:01:30]} 29. Rxd7 {[%clk 0:02:43]}  a4 {[%clk 0:01:30]} 30. Rcd1 {[%clk 0:02:39]}  c2 {[%clk 0:01:22]} 31. Rd8+ {[%clk 0:02:37]}  Bf8 {[%clk 0:01:22]} 32. R1d7 {[%clk 0:02:17]}  Rxd8 {[%clk 0:00:59]} 33. Rxd8 {[%clk 0:02:18]}  Kg7 {[%clk 0:01:00]} 34. Kf1 {[%clk 0:01:56]}  b3 {[%clk 0:00:33]} 35. axb3 {[%clk 0:01:55]}  axb3 {[%clk 0:00:34]} 36. Rb8 {[%clk 0:01:52]}  Ba3 {[%clk 0:00:32]} 37. Rxb3 {[%clk 0:01:47]}  c1=Q+ {[%clk 0:00:33]} 38. Bxc1 {[%clk 0:01:47]}  Bxc1 {[%clk 0:00:33]} 39. g3 {[%clk 0:01:48]}  h5 {[%clk 0:00:33]} 40. Ke2 {[%clk 0:01:47]}  g5 {[%clk 0:00:25]} 41. Kf3 {[%clk 0:01:48]}  gxf4 {[%clk 0:00:24]} 42. gxf4 {[%clk 0:01:49]}  Kg6 {[%clk 0:00:25]} 43. Ke4 {[%clk 0:01:50]}  h4 {[%clk 0:00:24]} 44. f5+ {[%clk 0:01:51]}  Kg5 {[%clk 0:00:24]} 45. Rb1 {[%clk 0:01:50]}  Ba3 {[%clk 0:00:22]} 46. Rg1+ {[%clk 0:01:51]}  Kh5 {[%clk 0:00:21]} 47. h3 {[%clk 0:01:52]}  Bc5 {[%clk 0:00:21]} 48. Rg4 {[%clk 0:01:53]}  Bf2 {[%clk 0:00:20]} 49. Rg7 {[%clk 0:01:52]} 1-0


[Site "https://www.chess.com"]

[Event "Titled Tuesday Blitz April 19 Early 2022"]
[White "Ingebretsen, Jens E"]
[Black "Dorokhin, Mykhailo"]
[WhiteFideId "1522965"]
[BlackFideId "14114178"]
[WhiteElo "2072"]
[BlackElo "2280"]
[Result "1-0"]
[Round "11"]
[TimeControl "180+1"]
[Date "2022.04.19"]
[WhiteClock "0:00:27"]
[BlackClock "0:00:49"]

1. e4 {[%clk 0:02:59]}  c6 {[%clk 0:02:59]} 2. d4 {[%clk 0:02:59]}  d5 {[%clk 0:03:00]} 3. exd5 {[%clk 0:03:00]}  cxd5 {[%clk 0:03:00]} 4. Bd3 {[%clk 0:03:00]}  Nf6 {[%clk 0:03:01]} 5. c3 {[%clk 0:03:01]}  Qc7 {[%clk 0:03:01]} 6. Ne2 {[%clk 0:03:01]}  Bg4 {[%clk 0:02:54]} 7. f3 {[%clk 0:03:01]}  Bh5 {[%clk 0:02:54]} 8. O-O {[%clk 0:02:59]}  e6 {[%clk 0:02:53]} 9. Qe1 {[%clk 0:02:59]}  Bg6 {[%clk 0:02:52]} 10. Bf4 {[%clk 0:02:57]}  Bd6 {[%clk 0:02:51]} 11. Qg3 {[%clk 0:02:56]}  Bxf4 {[%clk 0:02:49]} 12. Nxf4 {[%clk 0:02:55]}  Qd7 {[%clk 0:02:26]} 13. Re1 {[%clk 0:02:53]}  O-O {[%clk 0:02:25]} 14. Nd2 {[%clk 0:02:46]}  Nc6 {[%clk 0:02:24]} 15. Nxg6 {[%clk 0:02:39]}  hxg6 {[%clk 0:02:24]} 16. f4 {[%clk 0:02:39]}  Qd6 {[%clk 0:02:19]} 17. Re5 {[%clk 0:02:34]}  Nh5 {[%clk 0:02:12]} 18. Qf3 {[%clk 0:02:28]}  Nxe5 {[%clk 0:01:58]} 19. fxe5 {[%clk 0:02:25]}  Qe7 {[%clk 0:01:57]} 20. Rf1 {[%clk 0:02:21]}  f5 {[%clk 0:01:50]} 21. Rf2 {[%clk 0:02:04]}  Qg5 {[%clk 0:01:32]} 22. Nf1 {[%clk 0:02:01]}  Qc1 {[%clk 0:01:25]} 23. g3 {[%clk 0:01:53]}  a6 {[%clk 0:01:21]} 24. Rc2 {[%clk 0:01:44]}  Qg5 {[%clk 0:01:17]} 25. h3 {[%clk 0:01:39]}  b5 {[%clk 0:01:16]} 26. a3 {[%clk 0:01:38]}  Rab8 {[%clk 0:01:16]} 27. Rg2 {[%clk 0:01:36]}  a5 {[%clk 0:01:13]} 28. Kh2 {[%clk 0:00:47]}  b4 {[%clk 0:01:12]} 29. axb4 {[%clk 0:00:47]}  axb4 {[%clk 0:01:12]} 30. c4 {[%clk 0:00:48]}  dxc4 {[%clk 0:01:07]} 31. Bxc4 {[%clk 0:00:49]}  Rbe8 {[%clk 0:00:58]} 32. Qc6 {[%clk 0:00:30]}  Qe7 {[%clk 0:00:58]} 33. b3 {[%clk 0:00:29]}  f4 {[%clk 0:00:56]} 34. g4 {[%clk 0:00:28]}  f3 {[%clk 0:00:56]} 35. Rf2 {[%clk 0:00:28]}  Qh4 {[%clk 0:00:53]} 36. Rxf3 {[%clk 0:00:26]}  Rxf3 {[%clk 0:00:52]} 37. Qxf3 {[%clk 0:00:27]}  Rf8 {[%clk 0:00:52]} 38. Bxe6+ {[%clk 0:00:27]}  Kh7 {[%clk 0:00:52]} 39. Qxf8 {[%clk 0:00:27]}  Qe1 {[%clk 0:00:49]} 40. Qf3 {[%clk 0:00:27]} 1-0


[Site "https://www.chess.com"]

[Event "Titled Tuesday Blitz April 19 Early 2022"]
[White "Janaszak, Dawid"]
[Black "Shirov, Alexei"]
[WhiteFideId "1119206"]
[BlackFideId "2209390"]
[WhiteElo "2199"]
[BlackElo "2678"]
[Result "0-1"]
[Round "11"]
[TimeControl "180+1"]
[Date "2022.04.19"]
[WhiteClock "0:00:04"]
[BlackClock "0:01:14"]

1. e4 {[%clk 0:03:00]}  e5 {[%clk 0:02:59]} 2. Nf3 {[%clk 0:03:00]}  Nc6 {[%clk 0:02:59]} 3. d4 {[%clk 0:03:01]}  exd4 {[%clk 0:02:57]} 4. Nxd4 {[%clk 0:03:02]}  Qf6 {[%clk 0:02:56]} 5. Nf3 {[%clk 0:02:59]}  Bb4+ {[%clk 0:02:53]} 6. Nbd2 {[%clk 0:02:55]}  Nge7 {[%clk 0:02:46]} 7. c3 {[%clk 0:02:53]}  Bc5 {[%clk 0:02:44]} 8. b4 {[%clk 0:02:35]}  Qxc3 {[%clk 0:02:41]} 9. bxc5 {[%clk 0:02:32]}  Qxa1 {[%clk 0:02:39]} 10. Bc4 {[%clk 0:02:25]}  d6 {[%clk 0:02:30]} 11. O-O {[%clk 0:02:23]}  Qf6 {[%clk 0:02:26]} 12. cxd6 {[%clk 0:02:17]}  Qxd6 {[%clk 0:02:22]} 13. e5 {[%clk 0:02:14]}  Qg6 {[%clk 0:02:19]} 14. Re1 {[%clk 0:01:47]}  Be6 {[%clk 0:02:08]} 15. Bf1 {[%clk 0:01:36]}  O-O-O {[%clk 0:02:06]} 16. Qa4 {[%clk 0:01:36]}  Rd5 {[%clk 0:01:56]} 17. Nc4 {[%clk 0:01:18]}  Rhd8 {[%clk 0:01:52]} 18. Be3 {[%clk 0:01:07]}  a6 {[%clk 0:01:50]} 19. Qa3 {[%clk 0:00:26]}  Rd1 {[%clk 0:01:45]} 20. Ncd2 {[%clk 0:00:11]}  Rxe1 {[%clk 0:01:43]} 21. Nxe1 {[%clk 0:00:12]}  Nd5 {[%clk 0:01:39]} 22. Bc5 {[%clk 0:00:11]}  Nf4 {[%clk 0:01:34]} 23. Ndf3 {[%clk 0:00:07]}  Qb1 {[%clk 0:01:29]} 24. Be3 {[%clk 0:00:06]}  Nd5 {[%clk 0:01:25]} 25. g3 {[%clk 0:00:03]}  Nxe3 {[%clk 0:01:24]} 26. Qxe3 {[%clk 0:00:04]}  Qxa2 {[%clk 0:01:23]} 27. Kg2 {[%clk 0:00:04]}  Qd5 {[%clk 0:01:22]} 28. Bd3 {[%clk 0:00:04]}  Qb3 {[%clk 0:01:17]} 29. Qf4 {[%clk 0:00:02]}  Rxd3 {[%clk 0:01:15]} 30. Nxd3 {[%clk 0:00:03]}  Qxd3 {[%clk 0:01:15]} 31. Ng5 {[%clk 0:00:04]}  Bd5+ {[%clk 0:01:14]} 0-1


[Site "https://www.chess.com"]

[Event "Titled Tuesday Blitz April 19 Early 2022"]
[White "Kahlert, Thomas"]
[Black "Cramling Bellon, Anna"]
[WhiteFideId "4625242"]
[BlackFideId "32009232"]
[WhiteElo "2228"]
[BlackElo "1905"]
[Result "1/2-1/2"]
[Round "11"]
[TimeControl "180+1"]
[Date "2022.04.19"]
[WhiteClock "0:01:12"]
[BlackClock "0:00:04"]

1. d4 {[%clk 0:02:58]}  Nf6 {[%clk 0:02:56]} 2. Nf3 {[%clk 0:02:57]}  d5 {[%clk 0:02:56]} 3. c4 {[%clk 0:02:56]}  e6 {[%clk 0:02:55]} 4. Nc3 {[%clk 0:02:50]}  Bb4 {[%clk 0:02:43]} 5. cxd5 {[%clk 0:02:47]}  exd5 {[%clk 0:02:42]} 6. Bg5 {[%clk 0:02:46]}  Qd6 {[%clk 0:02:43]} 7. e3 {[%clk 0:02:43]}  Ne4 {[%clk 0:02:26]} 8. Rc1 {[%clk 0:02:41]}  c6 {[%clk 0:02:09]} 9. Bf4 {[%clk 0:02:40]}  Qe7 {[%clk 0:02:07]} 10. Bd3 {[%clk 0:02:37]}  Bg4 {[%clk 0:02:03]} 11. O-O {[%clk 0:02:37]}  O-O {[%clk 0:02:01]} 12. h3 {[%clk 0:02:35]}  Bh5 {[%clk 0:02:01]} 13. Be2 {[%clk 0:02:35]}  Nd7 {[%clk 0:01:42]} 14. a3 {[%clk 0:02:31]}  Bd6 {[%clk 0:01:38]} 15. Bxd6 {[%clk 0:02:30]}  Qxd6 {[%clk 0:01:39]} 16. Nxe4 {[%clk 0:02:27]}  dxe4 {[%clk 0:01:40]} 17. Nd2 {[%clk 0:02:27]}  Bg6 {[%clk 0:01:34]} 18. Qb3 {[%clk 0:02:26]}  Nb6 {[%clk 0:01:30]} 19. Nc4 {[%clk 0:02:24]}  Nxc4 {[%clk 0:01:30]} 20. Qxc4 {[%clk 0:02:23]}  Kh8 {[%clk 0:01:26]} 21. Qc5 {[%clk 0:02:23]}  Qd7 {[%clk 0:01:10]} 22. Rfd1 {[%clk 0:02:22]}  f5 {[%clk 0:01:08]} 23. g3 {[%clk 0:02:18]}  f4 {[%clk 0:00:46]} 24. exf4 {[%clk 0:02:17]}  Qxh3 {[%clk 0:00:45]} 25. d5 {[%clk 0:02:13]}  cxd5 {[%clk 0:00:37]} 26. Rxd5 {[%clk 0:02:09]}  Rac8 {[%clk 0:00:26]} 27. Qe3 {[%clk 0:02:08]}  Rxc1+ {[%clk 0:00:25]} 28. Qxc1 {[%clk 0:02:08]}  Rc8 {[%clk 0:00:22]} 29. Qd2 {[%clk 0:02:06]}  h6 {[%clk 0:00:18]} 30. Rd8+ {[%clk 0:02:03]}  Rxd8 {[%clk 0:00:17]} 31. Qxd8+ {[%clk 0:02:03]}  Kh7 {[%clk 0:00:17]} 32. Qd4 {[%clk 0:02:03]}  Qc8 {[%clk 0:00:10]} 33. g4 {[%clk 0:01:41]}  Qc1+ {[%clk 0:00:09]} 34. Kg2 {[%clk 0:01:36]}  Qxf4 {[%clk 0:00:10]} 35. Qxa7 {[%clk 0:01:35]}  e3 {[%clk 0:00:09]} 36. Qxe3 {[%clk 0:01:35]}  Be4+ {[%clk 0:00:09]} 37. Kg1 {[%clk 0:01:31]}  Qxe3 {[%clk 0:00:04]} 38. fxe3 {[%clk 0:01:31]}  Kg6 {[%clk 0:00:05]} 39. Kf2 {[%clk 0:01:31]}  Kg5 {[%clk 0:00:05]} 40. Kg3 {[%clk 0:01:31]}  Bc6 {[%clk 0:00:05]} 41. b4 {[%clk 0:01:27]}  g6 {[%clk 0:00:04]} 42. Bd1 {[%clk 0:01:25]}  h5 {[%clk 0:00:04]} 43. gxh5 {[%clk 0:01:26]}  gxh5 {[%clk 0:00:05]} 44. a4 {[%clk 0:01:25]}  h4+ {[%clk 0:00:06]} 45. Kh2 {[%clk 0:01:24]}  Kf5 {[%clk 0:00:03]} 46. b5 {[%clk 0:01:24]}  Bd5 {[%clk 0:00:02]} 47. Bc2+ {[%clk 0:01:24]}  Ke5 {[%clk 0:00:03]} 48. a5 {[%clk 0:01:23]}  Bc4 {[%clk 0:00:02]} 49. a6 {[%clk 0:01:13]}  bxa6 {[%clk 0:00:03]} 50. bxa6 {[%clk 0:01:12]}  Bxa6 {[%clk 0:00:03]} 51. Kh3 {[%clk 0:01:12]}  Bb7 {[%clk 0:00:03]} 52. Kxh4 {[%clk 0:01:12]}  Be4 {[%clk 0:00:03]} 53. Bxe4 {[%clk 0:01:11]}  Kxe4 {[%clk 0:00:03]} 54. Kg3 {[%clk 0:01:12]}  Kxe3 {[%clk 0:00:04]} 1/2-1/2


[Site "https://www.chess.com"]

[Event "Titled Tuesday Blitz April 19 Early 2022"]
[White "Kamsky, Gata"]
[Black "Shimelkov, Vasiliy"]
[WhiteFideId "2000024"]
[BlackFideId "13701630"]
[WhiteElo "2645"]
[BlackElo "2073"]
[Result "1-0"]
[Round "11"]
[TimeControl "180+1"]
[Date "2022.04.19"]
[WhiteClock "0:01:59"]
[BlackClock "0:00:07"]

1. d4 {[%clk 0:03:00]}  d5 {[%clk 0:02:59]} 2. Bf4 {[%clk 0:03:00]}  e6 {[%clk 0:02:59]} 3. e3 {[%clk 0:03:01]}  Bd6 {[%clk 0:03:00]} 4. c3 {[%clk 0:02:59]}  Nf6 {[%clk 0:02:59]} 5. Nd2 {[%clk 0:02:59]}  c5 {[%clk 0:02:58]} 6. Bb5+ {[%clk 0:02:58]}  Nc6 {[%clk 0:02:57]} 7. Bxc6+ {[%clk 0:02:59]}  bxc6 {[%clk 0:02:57]} 8. Bxd6 {[%clk 0:02:58]}  Qxd6 {[%clk 0:02:57]} 9. Qa4 {[%clk 0:02:59]}  O-O {[%clk 0:02:55]} 10. Qa3 {[%clk 0:02:58]}  Nd7 {[%clk 0:02:54]} 11. Ngf3 {[%clk 0:02:56]}  Re8 {[%clk 0:02:49]} 12. Nb3 {[%clk 0:02:56]}  e5 {[%clk 0:02:41]} 13. Nxc5 {[%clk 0:02:52]}  e4 {[%clk 0:02:24]} 14. Nd2 {[%clk 0:02:47]}  f5 {[%clk 0:02:20]} 15. Nxd7 {[%clk 0:02:41]}  Qxd7 {[%clk 0:02:04]} 16. O-O {[%clk 0:02:40]}  a5 {[%clk 0:01:59]} 17. c4 {[%clk 0:02:37]}  Ba6 {[%clk 0:01:58]} 18. Rfc1 {[%clk 0:02:35]}  f4 {[%clk 0:01:53]} 19. exf4 {[%clk 0:02:34]}  dxc4 {[%clk 0:01:52]} 20. Nxc4 {[%clk 0:02:26]}  Qxd4 {[%clk 0:01:47]} 21. Qe3 {[%clk 0:02:22]}  c5 {[%clk 0:01:18]} 22. Nxa5 {[%clk 0:02:17]}  Qxb2 {[%clk 0:01:07]} 23. Nb3 {[%clk 0:02:15]}  Bd3 {[%clk 0:01:03]} 24. Nxc5 {[%clk 0:02:12]}  Rec8 {[%clk 0:00:53]} 25. a4 {[%clk 0:02:09]}  Rd8 {[%clk 0:00:22]} 26. h4 {[%clk 0:02:08]}  Rab8 {[%clk 0:00:16]} 27. a5 {[%clk 0:02:05]}  Qb5 {[%clk 0:00:10]} 28. Nxe4 {[%clk 0:02:03]}  Bxe4 {[%clk 0:00:08]} 29. Qxe4 {[%clk 0:02:02]}  Re8 {[%clk 0:00:08]} 30. Qc4+ {[%clk 0:02:02]}  Qxc4 {[%clk 0:00:08]} 31. Rxc4 {[%clk 0:02:03]}  Ra8 {[%clk 0:00:09]} 32. a6 {[%clk 0:02:03]}  Ra7 {[%clk 0:00:08]} 33. Rc6 {[%clk 0:02:01]}  Rea8 {[%clk 0:00:07]} 34. f5 {[%clk 0:02:00]}  h6 {[%clk 0:00:07]} 35. g4 {[%clk 0:01:59]} 1-0


[Site "https://www.chess.com"]

[Event "Titled Tuesday Blitz April 19 Early 2022"]
[White "Kornyukov, Alexey"]
[Black "Kosteniuk, Alexandra"]
[WhiteFideId "4150457"]
[BlackFideId "4128125"]
[WhiteElo "2214"]
[BlackElo "2689"]
[Result "0-1"]
[Round "11"]
[TimeControl "180+1"]
[Date "2022.04.19"]
[WhiteClock "0:00:02"]
[BlackClock "0:01:11"]

1. d4 {[%clk 0:03:00]}  Nf6 {[%clk 0:02:59]} 2. c4 {[%clk 0:03:00]}  e6 {[%clk 0:03:00]} 3. Nc3 {[%clk 0:03:00]}  Bb4 {[%clk 0:02:59]} 4. f3 {[%clk 0:03:00]}  c5 {[%clk 0:02:56]} 5. d5 {[%clk 0:02:56]}  O-O {[%clk 0:02:55]} 6. e4 {[%clk 0:02:53]}  d6 {[%clk 0:02:55]} 7. Ne2 {[%clk 0:02:42]}  b5 {[%clk 0:02:55]} 8. a3 {[%clk 0:02:28]}  Ba5 {[%clk 0:02:51]} 9. dxe6 {[%clk 0:02:21]}  Bxe6 {[%clk 0:02:47]} 10. cxb5 {[%clk 0:02:17]}  d5 {[%clk 0:02:47]} 11. exd5 {[%clk 0:02:12]}  Nxd5 {[%clk 0:02:47]} 12. Kf2 {[%clk 0:02:06]}  Bb6 {[%clk 0:02:39]} 13. Nxd5 {[%clk 0:02:01]}  Bxd5 {[%clk 0:02:39]} 14. Nc3 {[%clk 0:01:34]}  c4+ {[%clk 0:02:39]} 15. Kg3 {[%clk 0:01:29]}  Be6 {[%clk 0:02:17]} 16. Qxd8 {[%clk 0:01:18]}  Rxd8 {[%clk 0:02:18]} 17. Be2 {[%clk 0:01:05]}  Nd7 {[%clk 0:02:18]} 18. Rd1 {[%clk 0:01:02]}  Nc5 {[%clk 0:02:15]} 19. Be3 {[%clk 0:00:44]}  Rdc8 {[%clk 0:01:56]} 20. Kf2 {[%clk 0:00:39]}  Nb3 {[%clk 0:01:53]} 21. Rab1 {[%clk 0:00:32]}  Bf5 {[%clk 0:01:49]} 22. Ne4 {[%clk 0:00:31]}  Bxe3+ {[%clk 0:01:22]} 23. Kxe3 {[%clk 0:00:31]}  Bg6 {[%clk 0:01:23]} 24. Rd5 {[%clk 0:00:18]}  f5 {[%clk 0:01:22]} 25. Nd6 {[%clk 0:00:17]}  f4+ {[%clk 0:01:21]} 26. Kxf4 {[%clk 0:00:15]}  Rf8+ {[%clk 0:01:20]} 27. Kg3 {[%clk 0:00:14]}  Bxb1 {[%clk 0:01:20]} 28. Bxc4 {[%clk 0:00:14]}  Na5 {[%clk 0:01:18]} 29. Rc5+ {[%clk 0:00:04]}  Nxc4 {[%clk 0:01:18]} 30. Nxc4 {[%clk 0:00:04]}  Rac8 {[%clk 0:01:15]} 31. Rxc8 {[%clk 0:00:03]}  Rxc8 {[%clk 0:01:16]} 32. Nd6 {[%clk 0:00:02]}  Rd8 {[%clk 0:01:11]} 0-1


[Site "https://www.chess.com"]